[Event "*** SCC Grand Prix: Titled Tuesday Blitz"]
[Site "Chess.com"]
[Date "2020.06.23"]
[Round "2"]
[White "Radzio1987"]
[Black "Chessdreamer2020"]
[Result "1-0"]
[WhiteElo "2855"]
[BlackElo "2433"]
[TimeControl "180+1"]
[EndTime "10:17:24 PDT"]
[Termination "Radzio1987 won by resignation"]

1. c4 {[%clk 0:03:00.9]} 1... c5 {[%clk 0:02:58.6]} 2. g3 {[%clk 0:03:00.5]}
2... Nc6 {[%clk 0:02:57.7]} 3. Bg2 {[%clk 0:03:00.9]} 3... g6 {[%clk 0:02:57.2]}
4. Nc3 {[%clk 0:03:01]} 4... Bg7 {[%clk 0:02:57.5]} 5. b3 {[%clk 0:03:01.6]}
5... e6 {[%clk 0:02:54.9]} 6. Ba3 {[%clk 0:03:01.6]} 6... b6 {[%clk 0:02:51.7]}
7. e3 {[%clk 0:03:00]} 7... Nge7 {[%clk 0:02:49.6]} 8. Nge2 {[%clk 0:03:00.1]}
8... O-O {[%clk 0:02:48.8]} 9. O-O {[%clk 0:02:59.7]} 9... Bb7 {[%clk
0:02:42.8]} 10. d4 {[%clk 0:02:57.9]} 10... d6 {[%clk 0:02:33.5]} 11. Rc1 {[%clk
0:02:55]} 11... a6 {[%clk 0:02:25.2]} 12. Qd2 {[%clk 0:02:51.2]} 12... Qc7
{[%clk 0:02:25]} 13. Bb2 {[%clk 0:02:48]} 13... Rfd8 {[%clk 0:02:16.7]} 14. Rfd1
{[%clk 0:02:47]} 14... Rac8 {[%clk 0:01:58.2]} 15. h3 {[%clk 0:02:41.8]} 15...
Qb8 {[%clk 0:01:56.5]} 16. d5 {[%clk 0:02:40.9]} 16... exd5 {[%clk 0:01:52.5]}
17. Nxd5 {[%clk 0:02:40.3]} 17... Nxd5 {[%clk 0:01:51.1]} 18. Bxg7 {[%clk
0:02:22.2]} 18... Kxg7 {[%clk 0:01:50.8]} 19. cxd5 {[%clk 0:02:14.5]} 19... Ne5
{[%clk 0:01:45.1]} 20. f4 {[%clk 0:02:13.6]} 20... Nd7 {[%clk 0:01:43.7]} 21. g4
{[%clk 0:02:12.8]} 21... Re8 {[%clk 0:01:42.8]} 22. Ng3 {[%clk 0:02:11.9]} 22...
Qc7 {[%clk 0:01:33.5]} 23. g5 {[%clk 0:02:07.8]} 23... f5 {[%clk 0:01:29.8]} 24.
e4 {[%clk 0:01:55]} 24... fxe4 {[%clk 0:01:26.1]} 25. Nxe4 {[%clk 0:01:55.9]}
25... Re7 {[%clk 0:00:57.2]} 26. Rc3 {[%clk 0:01:39.4]} 26... Rce8 {[%clk
0:00:56.7]} 27. Re3 {[%clk 0:01:37.1]} 27... c4 {[%clk 0:00:44.8]} 28. Qd4+
{[%clk 0:01:34.8]} 28... Kf7 {[%clk 0:00:43.9]} 29. bxc4 {[%clk 0:01:19.5]}
29... Bc8 {[%clk 0:00:36.6]} 30. Rde1 {[%clk 0:01:18.4]} 30... a5 {[%clk
0:00:09.8]} 31. h4 {[%clk 0:01:17.1]} 31... Ba6 {[%clk 0:00:07]} 32. h5 {[%clk
0:01:16.1]} 32... Qxc4 {[%clk 0:00:05.5]} 33. Nxd6+ {[%clk 0:01:15.3]} 1-0

[Event "*** SCC Grand Prix: Titled Tuesday Blitz"]
[Site "Chess.com"]
[Date "2020.06.23"]
[Round "2"]
[White "Sviridov_Valery"]
[Black "SARGISMV"]
[Result "1-0"]
[WhiteElo "2834"]
[BlackElo "2440"]
[TimeControl "180+1"]
[EndTime "10:17:28 PDT"]
[Termination "Sviridov_Valery won by resignation"]

1. Nf3 {[%clk 0:03:00.9]} 1... Nf6 {[%clk 0:02:59.1]} 2. g3 {[%clk 0:03:00.9]}
2... b5 {[%clk 0:02:58.6]} 3. Bg2 {[%clk 0:03:01]} 3... Bb7 {[%clk 0:02:59.2]}
4. O-O {[%clk 0:03:01.6]} 4... e6 {[%clk 0:02:59.6]} 5. d3 {[%clk 0:03:02.1]}
5... c5 {[%clk 0:03:00.1]} 6. Nbd2 {[%clk 0:03:01.5]} 6... d5 {[%clk 0:03:00.4]}
7. e4 {[%clk 0:03:01.9]} 7... Be7 {[%clk 0:02:54.9]} 8. exd5 {[%clk 0:03:00.6]}
8... Bxd5 {[%clk 0:02:50]} 9. c4 {[%clk 0:02:57.6]} 9... bxc4 {[%clk 0:02:46.4]}
10. dxc4 {[%clk 0:02:58.5]} 10... Bc6 {[%clk 0:02:46.1]} 11. Ne5 {[%clk
0:02:45.1]} 11... Bxg2 {[%clk 0:02:45]} 12. Kxg2 {[%clk 0:02:46]} 12... O-O
{[%clk 0:02:41.9]} 13. Qf3 {[%clk 0:02:45]} 13... Nbd7 {[%clk 0:02:21]} 14. Nc6
{[%clk 0:02:44]} 14... Qe8 {[%clk 0:02:21.4]} 15. b3 {[%clk 0:02:39.4]} 15...
Bd6 {[%clk 0:02:09.4]} 16. Bb2 {[%clk 0:02:39.4]} 16... a5 {[%clk 0:02:01.7]}
17. Rad1 {[%clk 0:02:35.7]} 17... a4 {[%clk 0:01:59]} 18. Ne4 {[%clk 0:02:30.3]}
18... Nxe4 {[%clk 0:01:57.7]} 19. Qxe4 {[%clk 0:02:31.2]} 19... Bc7 {[%clk
0:01:52.9]} 20. Rfe1 {[%clk 0:02:27.2]} 20... axb3 {[%clk 0:01:38.6]} 21. axb3
{[%clk 0:02:28.1]} 21... Ra2 {[%clk 0:01:38.7]} 22. Bc3 {[%clk 0:02:25.8]} 22...
Nb8 {[%clk 0:01:06.5]} 23. Ne5 {[%clk 0:02:25.2]} 23... Qe7 {[%clk 0:00:58.4]}
24. Rd3 {[%clk 0:02:20.6]} 24... Rd8 {[%clk 0:00:57.5]} 25. Red1 {[%clk
0:02:17.6]} 25... Rxd3 {[%clk 0:00:57]} 26. Rxd3 {[%clk 0:02:18.5]} 26... f6
{[%clk 0:00:52]} 27. Nc6 {[%clk 0:02:15.6]} 27... Qe8 {[%clk 0:00:38.2]} 28.
Nxb8 {[%clk 0:02:13.4]} 28... Bxb8 {[%clk 0:00:39.1]} 29. Qb7 {[%clk 0:02:13.5]}
29... Ra7 {[%clk 0:00:37.9]} 30. Qb6 {[%clk 0:02:11.5]} 30... Rc7 {[%clk
0:00:28.1]} 31. Bd2 {[%clk 0:02:11.4]} 31... Kf7 {[%clk 0:00:26.6]} 32. Bf4
{[%clk 0:02:07.7]} 32... e5 {[%clk 0:00:26.6]} 33. Be3 {[%clk 0:02:08.3]} 33...
Qc6+ {[%clk 0:00:27]} 34. Qxc6 {[%clk 0:02:07.5]} 34... Rxc6 {[%clk 0:00:27.9]}
35. Rd7+ {[%clk 0:02:07.6]} 35... Kg6 {[%clk 0:00:28]} 36. Rb7 {[%clk
0:02:06.5]} 36... Bd6 {[%clk 0:00:28.1]} 37. g4 {[%clk 0:02:04.8]} 37... h6
{[%clk 0:00:26.4]} 38. Kf3 {[%clk 0:02:03.7]} 38... Bc7 {[%clk 0:00:21.1]} 39.
Ke4 {[%clk 0:02:02.6]} 39... h5 {[%clk 0:00:20]} 40. h3 {[%clk 0:01:58.3]} 40...
hxg4 {[%clk 0:00:19.6]} 41. hxg4 {[%clk 0:01:59.2]} 41... Ba5 {[%clk 0:00:13.9]}
42. Kd5 {[%clk 0:01:56.3]} 42... Rc8 {[%clk 0:00:12.7]} 43. Bxc5 {[%clk
0:01:55.3]} 43... Rd8+ {[%clk 0:00:10.5]} 44. Bd6 {[%clk 0:01:55.6]} 44... Be1
{[%clk 0:00:08.9]} 45. f3 {[%clk 0:01:54.4]} 45... e4 {[%clk 0:00:08.6]} 46.
fxe4 {[%clk 0:01:54.3]} 46... Bg3 {[%clk 0:00:08.9]} 47. c5 {[%clk 0:01:54.7]}
47... Kg5 {[%clk 0:00:09.1]} 48. Rxg7+ {[%clk 0:01:54.1]} 48... Kh4 {[%clk
0:00:09.6]} 49. b4 {[%clk 0:01:53.8]} 1-0

[Event "*** SCC Grand Prix: Titled Tuesday Blitz"]
[Site "Chess.com"]
[Date "2020.06.23"]
[Round "2"]
[White "KazakhFighter04"]
[Black "Nafania1"]
[Result "1-0"]
[WhiteElo "2774"]
[BlackElo "2508"]
[TimeControl "180+1"]
[EndTime "10:17:29 PDT"]
[Termination "KazakhFighter04 won on time"]

1. d4 {[%clk 0:03:00.9]} 1... Nf6 {[%clk 0:02:59.6]} 2. c3 {[%clk 0:03:01]} 2...
e6 {[%clk 0:02:58.3]} 3. Bg5 {[%clk 0:03:01.5]} 3... d5 {[%clk 0:02:51.2]} 4.
Nd2 {[%clk 0:03:01.1]} 4... h6 {[%clk 0:02:34.7]} 5. Bh4 {[%clk 0:03:00.4]} 5...
b6 {[%clk 0:02:32.2]} 6. e3 {[%clk 0:02:59.8]} 6... Bb7 {[%clk 0:02:32.4]} 7.
Bd3 {[%clk 0:02:59.5]} 7... c5 {[%clk 0:02:31.8]} 8. f4 {[%clk 0:02:59.1]} 8...
Be7 {[%clk 0:02:24.6]} 9. Ngf3 {[%clk 0:02:58.9]} 9... O-O {[%clk 0:02:23.2]}
10. O-O {[%clk 0:02:58.1]} 10... Ba6 {[%clk 0:02:23.5]} 11. Bxa6 {[%clk
0:02:53.9]} 11... Nxa6 {[%clk 0:02:23.3]} 12. Qe2 {[%clk 0:02:54.8]} 12... Nb8
{[%clk 0:02:22.8]} 13. Ne5 {[%clk 0:02:42.8]} 13... Qc7 {[%clk 0:02:19.1]} 14.
f5 {[%clk 0:02:37.7]} 14... exf5 {[%clk 0:02:06.5]} 15. Rxf5 {[%clk 0:02:38.6]}
15... Nbd7 {[%clk 0:02:03.7]} 16. Raf1 {[%clk 0:02:33.8]} 16... Nxe5 {[%clk
0:01:57.2]} 17. dxe5 {[%clk 0:02:34.7]} 17... Ne4 {[%clk 0:01:51.1]} 18. Nxe4
{[%clk 0:02:32.8]} 18... dxe4 {[%clk 0:01:48.4]} 19. Bf6 {[%clk 0:02:05.6]}
19... Rae8 {[%clk 0:01:25.2]} 20. Qg4 {[%clk 0:01:55.2]} 20... Bxf6 {[%clk
0:01:23.8]} 21. exf6 {[%clk 0:01:52.7]} 21... g6 {[%clk 0:01:24]} 22. Rh5 {[%clk
0:01:50.9]} 22... Qc8 {[%clk 0:00:54]} 23. Qg3 {[%clk 0:01:33.3]} 23... Qb8
{[%clk 0:00:34.9]} 24. Rf4 {[%clk 0:01:32.7]} 24... Rd8 {[%clk 0:00:19.5]} 25.
h3 {[%clk 0:01:20.7]} 25... Rd1+ {[%clk 0:00:17.3]} 26. Kh2 {[%clk 0:01:20.6]}
26... Rfd8 {[%clk 0:00:09.5]} 27. Rxh6 {[%clk 0:01:19.4]} 27... Qc7 {[%clk
0:00:03.5]} 28. Rfh4 {[%clk 0:01:07.1]} 28... Qxg3+ {[%clk 0:00:01.9]} 29. Kxg3
{[%clk 0:01:07]} 1-0

[Event "*** SCC Grand Prix: Titled Tuesday Blitz"]
[Site "Chess.com"]
[Date "2020.06.23"]
[Round "2"]
[White "Thej11"]
[Black "DoHoChess"]
[Result "1-0"]
[WhiteElo "2479"]
[BlackElo "2194"]
[TimeControl "180+1"]
[EndTime "10:17:29 PDT"]
[Termination "Thej11 won by resignation"]

1. d4 {[%clk 0:03:00.9]} 1... d5 {[%clk 0:02:59.8]} 2. c4 {[%clk 0:03:00.1]}
2... e6 {[%clk 0:02:59.6]} 3. Nc3 {[%clk 0:02:58.2]} 3... a6 {[%clk 0:02:54.9]}
4. c5 {[%clk 0:02:52.5]} 4... b6 {[%clk 0:02:42]} 5. cxb6 {[%clk 0:02:51.4]}
5... c5 {[%clk 0:02:42.3]} 6. Qb3 {[%clk 0:02:46.2]} 6... Bd7 {[%clk 0:02:35.1]}
7. dxc5 {[%clk 0:02:39.3]} 7... Bxc5 {[%clk 0:02:34.6]} 8. b7 {[%clk 0:02:38.7]}
8... Ra7 {[%clk 0:02:34.6]} 9. Bf4 {[%clk 0:02:29.2]} 9... Nf6 {[%clk
0:02:28.9]} 10. e3 {[%clk 0:02:28.2]} 10... O-O {[%clk 0:02:22.6]} 11. Nf3
{[%clk 0:02:27.1]} 11... Nc6 {[%clk 0:02:04.5]} 12. Ne5 {[%clk 0:02:16.2]} 12...
Na5 {[%clk 0:02:03.8]} 13. Qc2 {[%clk 0:02:14.6]} 13... Rxb7 {[%clk 0:01:55.7]}
14. Bxa6 {[%clk 0:02:11.3]} 14... Ra7 {[%clk 0:01:45]} 15. Bd3 {[%clk
0:02:09.5]} 15... Nc6 {[%clk 0:01:43.6]} 16. Nxc6 {[%clk 0:02:07.7]} 16... Bxc6
{[%clk 0:01:43.8]} 17. O-O {[%clk 0:02:01.2]} 17... Bd6 {[%clk 0:01:41.5]} 18.
Ne2 {[%clk 0:01:53.7]} 18... Ba8 {[%clk 0:01:35.9]} 19. Bxd6 {[%clk 0:01:48.3]}
19... Qxd6 {[%clk 0:01:36]} 20. Rfc1 {[%clk 0:01:47.5]} 20... Ng4 {[%clk
0:01:14.5]} 21. Ng3 {[%clk 0:01:39.1]} 21... Qe5 {[%clk 0:01:14.9]} 22. Bxh7+
{[%clk 0:01:35.4]} 22... Kh8 {[%clk 0:01:15]} 23. Qc5 {[%clk 0:01:29.5]} 23...
Qb8 {[%clk 0:00:55.6]} 24. Bd3 {[%clk 0:01:22.8]} 24... Ne5 {[%clk 0:00:50.4]}
25. Be2 {[%clk 0:01:18.9]} 25... g6 {[%clk 0:00:49.3]} 26. Qd4 {[%clk
0:01:15.3]} 26... f6 {[%clk 0:00:45.9]} 27. a4 {[%clk 0:01:00.3]} 27... Rc8
{[%clk 0:00:20.4]} 1-0

[Event "*** SCC Grand Prix: Titled Tuesday Blitz"]
[Site "Chess.com"]
[Date "2020.06.23"]
[Round "2"]
[White "Gurvich_Vitaly"]
[Black "BillieKimbah"]
[Result "0-1"]
[WhiteElo "2550"]
[BlackElo "2851"]
[TimeControl "180+1"]
[EndTime "10:17:33 PDT"]
[Termination "BillieKimbah won by resignation"]

1. e4 {[%clk 0:03:00.9]} 1... c5 {[%clk 0:03:00.1]} 2. Nf3 {[%clk 0:03:00.4]}
2... e6 {[%clk 0:03:00.6]} 3. g3 {[%clk 0:02:59.8]} 3... Nc6 {[%clk 0:02:59.4]}
4. Bg2 {[%clk 0:02:59.3]} 4... Nf6 {[%clk 0:02:59.7]} 5. Qe2 {[%clk 0:02:58.7]}
5... e5 {[%clk 0:03:00]} 6. O-O {[%clk 0:02:57.5]} 6... Be7 {[%clk 0:03:00.1]}
7. d3 {[%clk 0:02:50.3]} 7... O-O {[%clk 0:03:00]} 8. Na3 {[%clk 0:02:48.2]}
8... Re8 {[%clk 0:02:57.6]} 9. Nc4 {[%clk 0:02:47.9]} 9... d6 {[%clk 0:02:51.5]}
10. c3 {[%clk 0:02:45.6]} 10... h6 {[%clk 0:02:51]} 11. a4 {[%clk 0:02:45.2]}
11... Bf8 {[%clk 0:02:50.7]} 12. Nh4 {[%clk 0:02:43.6]} 12... Rb8 {[%clk
0:02:43.2]} 13. Ne3 {[%clk 0:02:41.3]} 13... a6 {[%clk 0:02:40.2]} 14. Nef5
{[%clk 0:02:18.9]} 14... Be6 {[%clk 0:02:35]} 15. Be3 {[%clk 0:02:10.5]} 15...
d5 {[%clk 0:02:32.7]} 16. h3 {[%clk 0:01:54.7]} 16... d4 {[%clk 0:02:28.8]} 17.
cxd4 {[%clk 0:01:49.1]} 17... cxd4 {[%clk 0:02:18.3]} 18. Bd2 {[%clk 0:01:48.9]}
18... Rc8 {[%clk 0:02:10.7]} 19. a5 {[%clk 0:01:28.4]} 19... Kh7 {[%clk
0:02:08.4]} 20. Nf3 {[%clk 0:01:19.7]} 20... g6 {[%clk 0:02:02.1]} 21. N5h4
{[%clk 0:01:19.3]} 21... Nd7 {[%clk 0:02:02.2]} 22. Nh2 {[%clk 0:01:14.5]} 22...
Nc5 {[%clk 0:02:00.6]} 23. Ng4 {[%clk 0:01:08.6]} 23... Nb3 {[%clk 0:01:56.4]}
24. Rad1 {[%clk 0:01:08.1]} 24... Nxd2 {[%clk 0:01:54.6]} 25. Rxd2 {[%clk
0:01:09]} 25... Bg7 {[%clk 0:01:47.4]} 26. Qf3 {[%clk 0:00:54.6]} 26... h5
{[%clk 0:01:33.2]} 27. Nh2 {[%clk 0:00:51.1]} 27... Nxa5 {[%clk 0:01:33.1]} 28.
Nf5 {[%clk 0:00:44.2]} 28... Qg5 {[%clk 0:01:31.3]} 29. Nxg7 {[%clk 0:00:32.2]}
29... Kxg7 {[%clk 0:01:32.2]} 30. Re2 {[%clk 0:00:30.7]} 30... Nb3 {[%clk
0:01:30.2]} 31. Rd1 {[%clk 0:00:23.1]} 31... Rc1 {[%clk 0:01:27.1]} 32. Ree1
{[%clk 0:00:22.3]} 32... Rec8 {[%clk 0:01:26.9]} 33. Nf1 {[%clk 0:00:20.3]}
33... Rxd1 {[%clk 0:01:24.9]} 34. Rxd1 {[%clk 0:00:21.2]} 34... Rc1 {[%clk
0:01:24.6]} 35. Qe2 {[%clk 0:00:20.3]} 35... Rxd1 {[%clk 0:01:21.5]} 36. Qxd1
{[%clk 0:00:21.2]} 36... Qc1 {[%clk 0:01:20.2]} 37. Qe2 {[%clk 0:00:20.9]} 37...
a5 {[%clk 0:01:17.6]} 38. Kh2 {[%clk 0:00:20.3]} 38... a4 {[%clk 0:01:16.8]} 39.
h4 {[%clk 0:00:19.4]} 39... b5 {[%clk 0:01:16]} 40. f3 {[%clk 0:00:16.8]} 40...
b4 {[%clk 0:01:15.6]} 0-1

[Event "*** SCC Grand Prix: Titled Tuesday Blitz"]
[Site "Chess.com"]
[Date "2020.06.23"]
[Round "2"]
[White "eightbyeightchess"]
[Black "HunterBRR"]
[Result "1-0"]
[WhiteElo "2395"]
[BlackElo "2096"]
[TimeControl "180+1"]
[EndTime "10:17:37 PDT"]
[Termination "eightbyeightchess won by checkmate"]

1. e4 {[%clk 0:03:00.9]} 1... c5 {[%clk 0:02:59.8]} 2. Nf3 {[%clk 0:03:00.5]}
2... Nc6 {[%clk 0:02:59.7]} 3. d4 {[%clk 0:03:00.3]} 3... cxd4 {[%clk
0:03:00.6]} 4. Nxd4 {[%clk 0:03:00.7]} 4... Nf6 {[%clk 0:03:00.5]} 5. Nc3 {[%clk
0:03:00.8]} 5... e5 {[%clk 0:03:00]} 6. Nb3 {[%clk 0:02:59.6]} 6... Bb4 {[%clk
0:02:58.9]} 7. Bc4 {[%clk 0:03:00.1]} 7... O-O {[%clk 0:02:57.2]} 8. O-O {[%clk
0:02:59.7]} 8... Bxc3 {[%clk 0:02:52.7]} 9. bxc3 {[%clk 0:03:00.6]} 9... Nxe4
{[%clk 0:02:38.8]} 10. Ba3 {[%clk 0:03:01.1]} 10... Re8 {[%clk 0:02:38.4]} 11.
Bxf7+ {[%clk 0:02:59.7]} 11... Kxf7 {[%clk 0:02:30.9]} 12. Qd5+ {[%clk
0:02:59.3]} 12... Kf6 {[%clk 0:02:25.5]} 13. Qxe4 {[%clk 0:03:00.2]} 13... d5
{[%clk 0:02:16.2]} 14. Qxh7 {[%clk 0:02:57.6]} 14... Kf7 {[%clk 0:01:58.6]} 15.
Qh5+ {[%clk 0:02:54.7]} 15... Kg8 {[%clk 0:01:56.6]} 16. Rad1 {[%clk 0:02:48.3]}
16... Be6 {[%clk 0:01:45.4]} 17. Bc1 {[%clk 0:02:44.4]} 17... Bf7 {[%clk
0:01:37.9]} 18. Qg4 {[%clk 0:02:42.7]} 18... Rc8 {[%clk 0:01:28.2]} 19. Bg5
{[%clk 0:02:41.3]} 19... Qd6 {[%clk 0:01:22.6]} 20. Qh4 {[%clk 0:02:25.5]} 20...
Ne7 {[%clk 0:01:06.4]} 21. Rfe1 {[%clk 0:02:09.7]} 21... Rxc3 {[%clk 0:00:29.1]}
22. Rd3 {[%clk 0:02:03.6]} 22... Rxd3 {[%clk 0:00:24]} 23. cxd3 {[%clk
0:02:04.5]} 23... Ng6 {[%clk 0:00:22.3]} 24. Qa4 {[%clk 0:01:58.7]} 24... a6
{[%clk 0:00:17.3]} 25. Qg4 {[%clk 0:01:51.9]} 25... e4 {[%clk 0:00:10.4]} 26.
dxe4 {[%clk 0:01:49.7]} 26... dxe4 {[%clk 0:00:10.2]} 27. h4 {[%clk 0:01:49.7]}
27... Qb4 {[%clk 0:00:09.7]} 28. Rd1 {[%clk 0:01:45]} 28... Qa3 {[%clk
0:00:06.2]} 29. h5 {[%clk 0:01:43.5]} 29... Ne5 {[%clk 0:00:05.9]} 30. Qxe4
{[%clk 0:01:39]} 30... Qxa2 {[%clk 0:00:05.8]} 31. Nd4 {[%clk 0:01:34.1]} 31...
Qa4 {[%clk 0:00:04.7]} 32. Qb1 {[%clk 0:01:27.5]} 32... Qd7 {[%clk 0:00:02.7]}
33. Nf5 {[%clk 0:01:22.6]} 33... Qc7 {[%clk 0:00:02]} 34. h6 {[%clk 0:01:21.7]}
34... g6 {[%clk 0:00:01.7]} 35. Ng3 {[%clk 0:01:16.9]} 35... Ng4 {[%clk
0:00:01.5]} 36. Qb2 {[%clk 0:01:11.8]} 36... Qc5 {[%clk 0:00:01.4]} 37. Qg7#
{[%clk 0:01:10.9]} 1-0

[Event "*** SCC Grand Prix: Titled Tuesday Blitz"]
[Site "Chess.com"]
[Date "2020.06.23"]
[Round "2"]
[White "Konavets"]
[Black "vovachesss"]
[Result "1-0"]
[WhiteElo "3020"]
[BlackElo "2608"]
[TimeControl "180+1"]
[EndTime "10:17:41 PDT"]
[Termination "Konavets won by checkmate"]

1. e4 {[%clk 0:03:00.9]} 1... c6 {[%clk 0:02:56.4]} 2. d4 {[%clk 0:03:00.2]}
2... d5 {[%clk 0:02:56.8]} 3. e5 {[%clk 0:03:00.8]} 3... c5 {[%clk 0:02:57.4]}
4. dxc5 {[%clk 0:03:00.6]} 4... Nc6 {[%clk 0:02:57.6]} 5. a3 {[%clk 0:03:00.2]}
5... a5 {[%clk 0:02:57.3]} 6. Bb5 {[%clk 0:02:59.4]} 6... Bf5 {[%clk 0:02:55.8]}
7. Nf3 {[%clk 0:02:56.3]} 7... e6 {[%clk 0:02:55.9]} 8. Nd4 {[%clk 0:02:56.3]}
8... Rc8 {[%clk 0:02:29.9]} 9. Nxf5 {[%clk 0:02:52.7]} 9... exf5 {[%clk
0:02:30.8]} 10. Be3 {[%clk 0:02:50.4]} 10... f4 {[%clk 0:02:17.2]} 11. Bxf4
{[%clk 0:02:47.4]} 11... Bxc5 {[%clk 0:02:17]} 12. Qg4 {[%clk 0:02:46.3]} 12...
Ne7 {[%clk 0:02:03.1]} 13. Qxg7 {[%clk 0:02:44.1]} 13... Rg8 {[%clk 0:02:02.4]}
14. Qxh7 {[%clk 0:02:44.5]} 14... Bxf2+ {[%clk 0:01:57.6]} 15. Kf1 {[%clk
0:02:40.8]} 15... Qb6 {[%clk 0:01:48.9]} 16. Qd3 {[%clk 0:02:38.8]} 16... Rg4
{[%clk 0:01:28.5]} 17. g3 {[%clk 0:02:35.1]} 17... Kf8 {[%clk 0:01:04.1]} 18.
Nc3 {[%clk 0:02:31.6]} 18... Bd4 {[%clk 0:00:57.2]} 19. Na4 {[%clk 0:02:29]}
19... Qc7 {[%clk 0:00:50.3]} 20. Qf3 {[%clk 0:02:16.3]} 20... Rg6 {[%clk
0:00:37.8]} 21. e6 {[%clk 0:02:15.4]} 21... Be5 {[%clk 0:00:26.2]} 22. Bh6+
{[%clk 0:01:56.6]} 22... Kg8 {[%clk 0:00:26.4]} 23. exf7+ {[%clk 0:01:57]} 23...
Kh7 {[%clk 0:00:26.5]} 24. Bd3 {[%clk 0:01:57.7]} 24... Kxh6 {[%clk 0:00:22.3]}
25. f8=Q+ {[%clk 0:01:56.9]} 25... Rxf8 {[%clk 0:00:19.9]} 26. Qxf8+ {[%clk
0:01:57.8]} 26... Bg7 {[%clk 0:00:14.1]} 27. Qf4+ {[%clk 0:01:57.9]} 27... Qxf4+
{[%clk 0:00:14]} 28. gxf4 {[%clk 0:01:58.8]} 28... Rf6 {[%clk 0:00:14.6]} 29.
Nc5 {[%clk 0:01:54.3]} 29... Rxf4+ {[%clk 0:00:14.4]} 30. Kg2 {[%clk 0:01:54.6]}
30... Rg4+ {[%clk 0:00:13.1]} 31. Kh3 {[%clk 0:01:46.9]} 31... Rd4 {[%clk
0:00:08.2]} 32. Ne6 {[%clk 0:01:38.6]} 32... Ra4 {[%clk 0:00:05.1]} 33. b3
{[%clk 0:01:39.1]} 33... Bxa1 {[%clk 0:00:03.8]} 34. Rxa1 {[%clk 0:01:40]} 34...
Re4 {[%clk 0:00:03.4]} 35. Bxe4 {[%clk 0:01:39.8]} 35... dxe4 {[%clk 0:00:04.3]}
36. Re1 {[%clk 0:01:40]} 36... Nf5 {[%clk 0:00:02.9]} 37. Rxe4 {[%clk
0:01:39.1]} 37... Kg6 {[%clk 0:00:03.8]} 38. Nc5 {[%clk 0:01:38.8]} 38... Kg5
{[%clk 0:00:03.8]} 39. Nxb7 {[%clk 0:01:38.5]} 39... Ncd4 {[%clk 0:00:03.8]} 40.
Nd6 {[%clk 0:01:35.5]} 40... Nf3 {[%clk 0:00:02.8]} 41. Nxf5 {[%clk 0:01:34.8]}
41... Kxf5 {[%clk 0:00:03.7]} 42. Ra4 {[%clk 0:01:35]} 42... Ng5+ {[%clk
0:00:04.2]} 43. Kg2 {[%clk 0:01:35.5]} 43... Ne4 {[%clk 0:00:05.1]} 44. Rxe4
{[%clk 0:01:35.4]} 44... Kxe4 {[%clk 0:00:05.5]} 45. h4 {[%clk 0:01:36.3]} 45...
Kd4 {[%clk 0:00:06.4]} 46. h5 {[%clk 0:01:36.4]} 46... Kc3 {[%clk 0:00:06.8]}
47. h6 {[%clk 0:01:37.3]} 47... Kxc2 {[%clk 0:00:06.8]} 48. b4 {[%clk
0:01:38.2]} 48... a4 {[%clk 0:00:07.6]} 49. h7 {[%clk 0:01:38]} 49... Kb3 {[%clk
0:00:08.5]} 50. h8=Q {[%clk 0:01:38.9]} 50... Kxa3 {[%clk 0:00:09.2]} 51. Qc3+
{[%clk 0:01:39]} 51... Ka2 {[%clk 0:00:09.6]} 52. b5 {[%clk 0:01:39.9]} 52... a3
{[%clk 0:00:10.1]} 53. b6 {[%clk 0:01:40.5]} 53... Kb1 {[%clk 0:00:10.2]} 54. b7
{[%clk 0:01:41.2]} 54... Ka2 {[%clk 0:00:10.9]} 55. Qc2+ {[%clk 0:01:41.2]}
55... Ka1 {[%clk 0:00:11.2]} 56. b8=Q {[%clk 0:01:42.1]} 56... a2 {[%clk
0:00:11.2]} 57. Qbb2# {[%clk 0:01:42.7]} 1-0

[Event "*** SCC Grand Prix: Titled Tuesday Blitz"]
[Site "Chess.com"]
[Date "2020.06.23"]
[Round "2"]
[White "chess94cu"]
[Black "Rakhmanov_Aleksandr"]
[Result "1/2-1/2"]
[WhiteElo "2548"]
[BlackElo "2807"]
[TimeControl "180+1"]
[EndTime "10:17:41 PDT"]
[Termination "Game drawn by repetition"]

1. d4 {[%clk 0:03:00.9]} 1... Nf6 {[%clk 0:01:47.3]} 2. c4 {[%clk 0:02:59.4]}
2... d6 {[%clk 0:01:46]} 3. Nc3 {[%clk 0:02:57.5]} 3... e5 {[%clk 0:01:45.8]} 4.
Nf3 {[%clk 0:02:50.7]} 4... e4 {[%clk 0:01:44.5]} 5. Nd2 {[%clk 0:02:31.5]} 5...
Bf5 {[%clk 0:01:38.8]} 6. e3 {[%clk 0:02:19.9]} 6... c6 {[%clk 0:01:38.2]} 7.
Be2 {[%clk 0:02:19.6]} 7... d5 {[%clk 0:01:38.1]} 8. h3 {[%clk 0:02:18.2]} 8...
h5 {[%clk 0:01:37.6]} 9. b3 {[%clk 0:02:18.4]} 9... Bd6 {[%clk 0:01:37]} 10. Bb2
{[%clk 0:02:18.5]} 10... a6 {[%clk 0:01:36.2]} 11. Qc2 {[%clk 0:02:17.6]} 11...
Bg6 {[%clk 0:01:32.4]} 12. O-O-O {[%clk 0:02:06.2]} 12... Nbd7 {[%clk
0:01:30.9]} 13. g4 {[%clk 0:02:05.9]} 13... h4 {[%clk 0:01:29.2]} 14. g5 {[%clk
0:02:04.2]} 14... Nh7 {[%clk 0:01:27.7]} 15. cxd5 {[%clk 0:02:04.7]} 15... cxd5
{[%clk 0:01:26.6]} 16. Nxd5 {[%clk 0:02:05.2]} 16... Rc8 {[%clk 0:01:21.6]} 17.
Nc3 {[%clk 0:02:04.8]} 17... b5 {[%clk 0:01:19]} 18. a3 {[%clk 0:01:59.2]} 18...
Nxg5 {[%clk 0:01:18.6]} 19. Kb1 {[%clk 0:01:57.6]} 19... O-O {[%clk 0:01:11.7]}
20. b4 {[%clk 0:01:56.7]} 20... Nb6 {[%clk 0:01:11.7]} 21. Qb3 {[%clk
0:01:56.8]} 21... Nf3 {[%clk 0:01:04.7]} 22. Ka1 {[%clk 0:01:17.4]} 22... Nxd2
{[%clk 0:01:03.3]} 23. Rxd2 {[%clk 0:01:18.3]} 23... Nc4 {[%clk 0:01:03.7]} 24.
Rc2 {[%clk 0:01:14.2]} 24... Nxb2 {[%clk 0:00:54.6]} 25. Kxb2 {[%clk 0:01:11.8]}
25... Qf6 {[%clk 0:00:51.7]} 26. Bg4 {[%clk 0:01:05]} 26... Rc4 {[%clk
0:00:51.5]} 27. Nd5 {[%clk 0:01:01.2]} 27... Rxc2+ {[%clk 0:00:49.9]} 28. Qxc2
{[%clk 0:01:01.3]} 28... Qd8 {[%clk 0:00:47.9]} 29. Rg1 {[%clk 0:00:57.6]} 29...
Kh7 {[%clk 0:00:46.3]} 30. Qe2 {[%clk 0:00:51.8]} 30... a5 {[%clk 0:00:41.2]}
31. Bf5 {[%clk 0:00:51.6]} 31... Bxf5 {[%clk 0:00:31.7]} 32. Qh5+ {[%clk
0:00:50.1]} 32... Kg8 {[%clk 0:00:32.1]} 33. Qxf5 {[%clk 0:00:50.5]} 33... g6
{[%clk 0:00:30]} 34. Rxg6+ {[%clk 0:00:46.7]} 34... fxg6 {[%clk 0:00:30.9]} 35.
Qxg6+ {[%clk 0:00:47.3]} 35... Kh8 {[%clk 0:00:30.9]} 36. Qh6+ {[%clk
0:00:47.6]} 36... Kg8 {[%clk 0:00:31.5]} 37. Qg6+ {[%clk 0:00:47.3]} 37... Kh8
{[%clk 0:00:32.1]} 38. Qh6+ {[%clk 0:00:47.7]} 38... Kg8 {[%clk 0:00:32]} 39.
Qg6+ {[%clk 0:00:47.5]} 1/2-1/2